Cogmind - Beta 10.1 @@@ ROGUE MODE // 2020.10.26 @ 23:38:47 Player: The Scout Result: Destroyed by G-34 Mercenary with Small Laser Performance ------------- Evolutions (0) 0 Regions Visited (1) 200 Robots Destroyed (34) 170 Value Destroyed (428) 428 Prototype IDs (2) 40 Alien Tech Used (0) 0 Bonus (0) 0 TOTAL SCORE: 838 Bonus ------- None Cogmind --------- Core Integrity 0/250 Matter 300/300 Energy 183/250 System Corruption 1% Temperature Cool (6) Movement Walking (240) Ox4 Location -10/Materials Parts ------- > --- POWER (1) -------- Ion Engine > --- PROPULSION (2) --- Aluminum Leg > --- UTILITY (2) ------ High-capacity Storage Unit Hacking Suite > --- WEAPON (2) ------- Light EM Pulse Cannon Assault Rifle > --- INVENTORY (12) --- Improved Heat Sink Large Storage Unit Medium Matter Pod (100) Structural Scanner Improved Sensor Array Improved Terrain Scanner Transport Network Coupler Light EM Pulse Cannon Assault Rifle Datajack Peak State ------------ > --- POWER ------------ Light Nuclear Core > --- PROPULSION ------- Aluminum Leg Aluminum Leg > --- UTILITY ---------- Large Storage Unit Medium Matter Pod > --- WEAPON ----------- Particle Gun Assault Rifle > --- INVENTORY -------- Ion Engine Large Storage Unit Structural Scanner Improved Terrain Scanner Hacking Suite Small Laser Assault Rifle [Rating: 11] Favorites ----------- Power Light Ion Engine Engine Light Ion Engine Power Core Light Nuclear Core Propulsion Aluminum Leg Leg Aluminum Leg Utility Medium Matter Pod Device Improved Terrain Scanner Storage Medium Matter Pod Hackware Hacking Suite Weapon Assault Rifle Energy Gun Small Laser Energy Cannon Light EM Pulse Cannon Ballistic Gun Assault Rifle Special Weapon Mining Laser Special Melee Weapon Datajack Build | -11 -10 ------- Run | Scr Mat Slots Evolved . | . . Power . | . . Propulsion . | . . Utility . | . . Weapon . | . . Parts Attached 27 | 11 16 Power 4 | 2 2 Engine 3 | 2 1 Core 1 | . 1 Reactor . | . . Propulsion 3 | 2 1 Treads . | . . Leg 3 | 2 1 Wheel . | . . Hover . | . . Flight . | . . Utility 5 | 2 3 Device 1 | 1 . Storage 3 | 1 2 Processor . | . . Hackware 1 | . 1 Protection . | . . Artifact . | . . Weapon 15 | 5 10 Energy Gun 3 | 2 1 Energy Cannon 3 | . 3 Ballistic Gun 7 | 2 5 Ballistic Cannon . | . . Launcher . | . . Special Weapon 1 | 1 . Impact Weapon . | . . Slashing Weapon . | . . Piercing Weapon . | . . Special Melee Weapon 1 | . 1 Unidentified Prototypes . | . . Parts Lost 4 | . 4 Power 1 | . 1 Propulsion 1 | . 1 Utility . | . . Weapon 2 | . 2 Highest Loss Streak 2 | . 2 Average Slot Usage (%) 87 | . 87 Engine 1 | . 1 Core 2 | . 2 Leg 27 | . 27 Storage 24 | . 24 Hackware 2 | . 2 Energy Gun 2 | . 2 Energy Cannon 8 | . 8 Ballistic Gun 13 | . 13 Special Melee Weapon 2 | . 2 Naked Turns . | . . Heaviest Build 38 | 10 38 Greatest Support 20 | 20 20 Greatest Overweight (x) 1 | . 1 Average Overweight (x) . | . . Largest Inventory Capacity 18 | 4 18 Average Capacity 6 | 4 10 Most Carried 12 | 4 12 Average Carried 5 | 3 8 Final Capacity 12 | 4 12 Final Carried 10 | 3 10 Class Distribution -------------------- 65% | Scavenger-Mutant 34% | Mutant Dominant Class ---------------- Mutant | -10/Materials Resources | -11 -10 ----------- Run | Scr Mat Matter Collected 937 | 389 548 Remotely . | . . Salvage Created 1038 | 82 956 Parts 77 | 10 67 Haulers Intercepted . | . . Recyclers Shooed 4 | . 4 Parts Field Recycled . | . . Retrieved Matter . | . . Parts Self-Destructed . | . . Prevented . | . . Kills | -11 -10 ------- Run | Scr Mat Combat Hostiles Destroyed 8 | 1 7 Guns 8 | 1 7 Classes Destroyed 7 | 3 4 Worker 10 | 1 9 Builder 7 | . 7 Tunneler 1 | 1 . Recycler 5 | . 5 Operator 2 | . 2 Watcher 1 | . 1 Grunt 8 | 1 7 Best Kill Streak 6 | 1 6 Combat Bots Only 2 | 1 2 Max Kills in Single Turn 1 | 1 1 Gunslinging . | . . Exploded . | . . Melee . | . . Uniques/NPCs Destroyed . | . . Combat | -11 -10 -------- Run | Scr Mat Damage Taken 797 | 77 720 Core 250 | 24 226 Absorbed by Shields . | . . Core Remaining (%) 90 | 90 . Volleys Fired 97 | 11 86 Largest 2 | 2 2 Hottest 140 | 60 140 Shots Fired 177 | 22 155 Gun 168 | 22 146 Cannon 7 | . 7 Launcher . | . . Special 2 | . 2 Kinetic 148 | 20 128 Thermal 22 | 2 20 Explosive . | . . Electromagnetic 7 | . 7 Robot Hit Streak 16 | 4 16 Robot Miss Streak 5 | 2 5 Penetration Max . | . . Secondary Targets 1 | . 1 Max Gunslinging Chain 1 | . 1 Shots Hit Robots 115 | 14 101 Core Hits 49 | 3 46 Critical Hits 1 | . 1 Critical Kills . | . . Critical Parts Destroyed 1 | . 1 Melee Attacks 7 | . 7 Impact . | . . Slashing . | . . Piercing . | . . Sneak Attacks 5 | . 5 Combat Hostiles . | . . Follow-up Attacks . | . . Damage Inflicted 1424 | 126 1298 Guns 1213 | 126 1087 Cannons 163 | . 163 Explosions . | . . Melee . | . . Ramming 24 | . 24 Kinetic 999 | 102 897 Thermal 238 | 24 214 Explosive . | . . Electromagnetic 163 | . 163 Impact . | . . Slashing . | . . Piercing . | . . Highest Corruption 1 | . 1 Average Corruption 1 | . 1 Corruption Purged . | . . Effects 5 | . 5 Message Errors 2 | . 2 Data Loss (minor) 3 | . 3 Overload Shots . | . . Overflow Damage 6 | . 6 Projectiles 6 | . 6 Explosions . | . . Melee . | . . Knockbacks . | . . Impact . | . . Kinetic . | . . Secondary . | . . Self-Inflicted Damage 6 | . 6 Shots . | . . Rammed 6 | . 6 Targets Rammed 8 | . 8 Kicked 2 | . 2 Crushed . | . . Highest Temperature 120 | . 120 Average Temperature 42 | . 42 Received Heat Transfer 405 | 42 363 Siege Activations . | . . Robots Corrupted . | . . Combat Hostiles . | . . Parts Fried 1 | . 1 Impact Corruptions . | . . Robots Melted . | . . Combat Hostiles . | . . Parts Melted . | . . Heat Transferred 582 | 50 532 Parts Sabotaged . | . . Parts Stolen . | . . Parts Stripped . | . . Power Chain Reactions . | . . Missiles Intercepted . | . . Alert | -11 -10 ------- Run | Scr Mat Peak Influence 212 | 25 212 Initial . | . . Average 20 | 3 47 Maximum Alert Level 1 | . 1 Low Security (%) 99 | 100 98 Level 1 . | . 1 Level 2 . | . . Level 3 . | . . Level 4 . | . . Level 5 . | . . High Security . | . . Max Security . | . . Squads Dispatched 4 | . 4 Investigation 2 | . 2 Extermination . | . . Reinforcement 2 | . 2 Assault . | . . Garrison . | . . Intercept . | . . Construction Impeded . | . . Haulers Reinforced . | . . Stealth | -11 -10 --------- Run | Scr Mat Distress Signals . | . . Communications Jammed . | . . Distress Signals . | . . Times Spotted 18 | 1 17 Peak Tracking Total 3 | 1 3 Tactical Retreats . | . . Traps | -11 -10 ------- Run | Scr Mat Traps Triggered 2 | . 2 Indirectly . | . . Trap Hack Attempts . | . . Triggered . | . . Disarmed . | . . Reprogrammed . | . . Reused . | . . Traps Extracted . | . . Installed . | . . Triggered . | . . Machines | -11 -10 ---------- Run | Scr Mat Machines Disabled . | . . Max in Single Turn . | . . Machines Sabotaged . | . . Garrisons Compromised . | . . Overloaded Fab Kills . | . . Fab Network Shutdowns . | . . Hacking | -11 -10 --------- Run | Scr Mat Machines Accessed 3 | . 3 Terminals 2 | . 2 Fabricators . | . . Repair Stations . | . . Recycling Units 1 | . 1 Scanalyzers . | . . Garrison Access . | . . Total Hacks 17 | . 17 Successful 13 | . 13 Failed 4 | . 4 Catastrophic 1 | . 1 Database Lockouts . | . . Manual . | . . Terminals 14 | . 14 Fabricators . | . . Repair Stations . | . . Recycling Units 3 | . 3 Scanalyzers . | . . Garrison Access . | . . Terminal Hacks 11 | . 11 Record 7 | . 7 Prototype ID Bank 1 | . 1 Locate Traps 1 | . 1 Maintenance Status 1 | . 1 Recall Assault 1 | . 1 Fabricator Hacks . | . . Repair Station Hacks . | . . Recycling Unit Hacks 2 | . 2 Recycle Component 1 | . 1 Process 1 | . 1 Scanalyzer . | . . Garrison Access Hacks . | . . Unauthorized Hacks . | . . Terminals . | . . Fabricators . | . . Repair Stations . | . . Recycling Units . | . . Scanalyzers . | . . Garrison Access . | . . Data Cores Recovered . | . . Used . | . . Hacking Detections 2 | . 2 Full Trace Events 2 | . 2 Feedback Events 1 | . 1 Corruption 1 | . 1 Feedback Blocked . | . . Robot Schematics Acquired . | . . Robots Built . | . . Matter . | . . Time . | . . Total Robot Build Rating . | . . Part Schematics Acquired . | . . Parts Built . | . . Matter . | . . Time . | . . Total Part Build Rating . | . . Parts Repaired . | . . Time . | . . Parts Recycled 1 | . 1 Recycled Matter 31 | . 31 Retrieved Matter . | . . Retrieved Components . | . . Parts Scanalyzed . | . . Part Schematics Acquired . | . . Parts Damaged . | . . Bothacking | -11 -10 ------------ Run | Scr Mat Used RIF Installer . | . . Robots Hacked 4 | . 4 Non-combat 3 | . 3 Combat 1 | . 1 Robot Hacks Applied 4 | . 4 parse_system 2 | . 2 no_distress 1 | . 1 find_recycling 1 | . 1 Relay Couplers Released . | . . Robots Rewired . | . . Allies Hacked . | . . Hacks Repelled . | . . Allies | -11 -10 -------- Run | Scr Mat Total Allies . | . . Largest Group . | . . Highest-Rated Group . | . . Highest-Rated Ally . | . . Total Orders . | . . Ally Attacks . | . . Total Damage . | . . Kills . | . . Allies Corrupted . | . . Allies Melted . | . . Intel | -11 -10 ------- Run | Scr Mat Robot Analysis Total . | . . Derelict Logs Recovered . | . . Drone Launches . | . . Drone Recoveries . | . . Exploration | -11 -10 ------------- Run | Scr Mat Turns Passed 3612 | 2230 1382 Spaces Moved 1326 | 730 596 Core 32 | 32 . Treads . | . . Legs 1294 | 698 596 Wheels . | . . Hover . | . . Flight . | . . Fastest Speed 50 | 50 120 Average Speed 131 | 116 149 Slowest Speed 150 | 120 150 Overloaded Moves . | . . Propulsion Burnouts . | . . Robots Hopped . | . . Cave-ins Triggered . | . . Exploration Rate (%) 41 | 38 45 Regions Visited 1 Branch Regions . Pre-discovered Areas . | . . Known Exits Taken . | . . Unknown Exits Taken 1 | 1 . Scrap Searched . | . . Spaces Dug . | . . Terrain Destroyed 1 | . 1 Melee . | . . Projectile 1 | . 1 AOE . | . . Terrain Rammed . | . . Walls Destroyed . | . . Machines Disabled . | . . Actions | -11 -10 --------- Run | Scr Mat Total 3010 | 2087 923 Wait 1483 | 1316 167 Move 1325 | 729 596 Hop . | . . Pick Up 38 | 14 24 Fast Attach . | . . Attach 27 | 11 16 Detach 8 | 2 6 Swap . | . . Drop 17 | 4 13 Fire 97 | 11 86 Melee 7 | . 7 Ram . | . . Kick 8 | . 8 Crush . | . . Escape Stasis . | . . Rewire . | . . Trap . | . . Miscellaneous . | . . Route ------- -11/Scrapyard -10/Materials (discovered 1 exit: [*Mat]) History --------- Turn | Location | Event 2 | -11/Scrapyard | Met Revision 17 104 | -11/Scrapyard | Discovered new exit (range 8) 2231 | -11/Scrapyard | Entered Materials 2232 | -10/Materials | Build established: Scavenger-Mutant 2589 | -10/Materials | Core integrity fell below 50% 2898 | -10/Materials | Build established: Mutant 2933 | -10/Materials | Discovered new exit (range 3) 3596 | -10/Materials | Core integrity fell below 20% 3613 | -10/Materials | Destroyed by G-34 Mercenary with Small Laser Last Messages --------------- 03524_ System corrupted: Component data lost. 03549_ Sneak attack on K-01 Serf. 03549_ Jacked K-01 Serf... >>find_chute No applicable chute records found in memory. 03549_ K-01 Serf cleans the Atomic Centrifuge. 03584_ Jacked G-34 Mercenary... >>parse_system Reading system data... 03586_ Jacked G-34 Mercenary... 03591_ K-01 Serf cleans the Atomic Centrifuge. 03596_ Kicked G-34 Mercenary out of the way. 03598_ Slammed into G-34 Mercenary. 03599_ Aluminum Leg destroyed. 03600_ Slammed into G-34 Mercenary. 03605_ G-34 Mercenary misfires. 03605_ Kicked G-34 Mercenary out of the way. 03607_ Slammed into G-34 Mercenary. 03610_ Destabilizing: Core damaged (-10). 03612_ Slammed into G-34 Mercenary. Map ----- +----------------------------------------------------+ | ????#################### ???????????????????? | | ##### #??????????????????? | | #??????????????????? | | #??????????????????? | | ! " ???????????????????? | | ##### !! % ! T ????????????????????? | | ????# !! ########## " #???????????????????? | | ???## #^ # #???????????????????? | | ???# + # #???????????????????? | | ???# # # #???????????????????? | | ???# # # """ #???????????????????? | | ???# ######%![ ! # """ #???????????????????? | | ???# #????#!! # """ #???????????????????? | | ???# #????#!! # #########???????????? | | ???# #????##########[ ??????????? | | ???#= ########??????# ??????????? | | ???#% # ==/ #??????# ??????????? | | #### # ==/ #??????## #########+####???????????? | | ![[# # == #???????#u#????????????????????????? | | [[# # #??######/###??????????????????????? | | # # ???# % #??????????????????????? | | ## # ?????# %%""" #??????????????????????? | | ## ##+######## """ #??????????????????????? | | #% """ #??????????????????????? | | % + #??????????????????????? | | % % %# =""" @#??????????????????????? | | ##+######### %#! """g #??????????????????????? | | ##* #???# # """ #??????????????????????? | | ##%! #???# *#! #??????????????????????? | | ##== """#??## ##########??????????????????????? | | ## """#??## #########???????????????????????? | | ## """#??## =### ??????????????????????? | | ## #??## %### """"??????????????????????? | | !#########??## ### """"??????????????????????? | | #??????????## ### """""#????????????????????? | | !#??????????## =%### """""#??????????#?????????? | | #??????????# ## """""#????????????????????? | | #??????????# ##%* """""#????????????????????? | | #??????????# T + """""#????????????????????? | | #??????????# ## = #????????????????????? | | #??????????# #######+######?????????????????? | | ######?????###+###???# ! * !!##????????????????? | | #???????????????#* !#????????????????? | | #???????????????# #????????????????? | | #???????????????# #????????????????? | | ### #???????????????# !#????????????????? | | # #???????????????## ##!!##????????????????? | | # #????????????????# #####?????????????????? | | + #????????????????# #?????#???????????????? | | # #????????????????# #????????#????????????? | +----------------------------------------------------+ Best States ------------- Heat Dissipation 25 Energy Generation 14 Energy Capacity 250 Matter Stores 400 Matter Capacity 400 Sight Range 16 Terrain Scan Range 16 Terrain Scan Density 10 Evasion (%) 50 Offensive Hacking 10 Item Schematics ----------------- None Robot Schematics ------------------ None Fabricated ------------ Nothing Alien Tech Used ----------------- None Achievements -------------- Storm Trooper Challenges ------------ None Game ------ Seed AbsorptionRagnarokModule Manual? 0 Play Time 00:30:59 Cumulative 1.6 hours Start 2020.10.26 @ 23:02:59 End 2020.10.26 @ 23:38:47 Sessions 1 Manual Loads 0 Difficulty Rogue Special Mode None Game No. 3 Rogue 3 Adventurer 0 Explorer 0 Win Type - Total 0 Types 0/0/0/0/0/0/0/0/0 Lore% 1 Gallery% 3 Achievement% 3 Wizard Run 0 Options --------- ASCII 0 Keyboard 0 Movement Numpad Keybinds 0 Fullscreen 2 Font 24/Cog Map View 76x50 Tactical HUD 1 Map Filters NONE Filters NONE Steam 1 RUN: d1e80121-26bc-4782-aff7-6c226a150075